[Event "Titled Tuesday Blitz December 13 Early 2022"]
[White "Derraugh, Geordie"]
[Black "Albertini, Luca"]
[WhiteFideId "2603950"]
[BlackFideId "847038"]
[WhiteElo "2082"]
[BlackElo "2207"]
[Result "0-1"]
[Round "02"]
[TimeControl "180+1"]
[Date "2022.12.14"]
[WhiteClock "0:00:02"]
[BlackClock "0:00:39"]

1. e4 {[%clk 0:03:00]}  e5 {[%clk 0:02:56]} 2. Nf3 {[%clk 0:03:00]}  Nc6 {[%clk 0:02:56]} 3. Nc3 {[%clk 0:03:01]}  Nf6 {[%clk 0:02:56]} 4. Bb5 {[%clk 0:03:02]}  Bc5 {[%clk 0:02:54]} 5. Nxe5 {[%clk 0:03:01]}  Nxe5 {[%clk 0:02:52]} 6. d4 {[%clk 0:03:01]}  Bxd4 {[%clk 0:02:52]} 7. Qxd4 {[%clk 0:03:01]}  Ng6 {[%clk 0:02:52]} 8. O-O {[%clk 0:02:59]}  O-O {[%clk 0:02:50]} 9. e5 {[%clk 0:02:55]}  Ne8 {[%clk 0:02:49]} 10. Be3 {[%clk 0:02:21]}  c6 {[%clk 0:02:48]} 11. Bd3 {[%clk 0:02:10]}  d5 {[%clk 0:02:49]} 12. f4 {[%clk 0:02:06]}  f5 {[%clk 0:02:39]} 13. exf6 {[%clk 0:02:01]}  Qxf6 {[%clk 0:02:30]} 14. f5 {[%clk 0:01:38]}  Ne5 {[%clk 0:02:23]} 15. g4 {[%clk 0:01:18]}  Nxd3 {[%clk 0:02:01]} 16. Qxd3 {[%clk 0:01:17]}  Qd6 {[%clk 0:01:47]} 17. Rae1 {[%clk 0:01:12]}  a6 {[%clk 0:01:44]} 18. g5 {[%clk 0:00:36]}  Qb4 {[%clk 0:01:42]} 19. Re2 {[%clk 0:00:31]}  Bxf5 {[%clk 0:01:29]} 20. Qd4 {[%clk 0:00:31]}  Qxd4 {[%clk 0:01:24]} 21. Bxd4 {[%clk 0:00:32]}  Rf7 {[%clk 0:01:03]} 22. Bc5 {[%clk 0:00:31]}  g6 {[%clk 0:00:54]} 23. Na4 {[%clk 0:00:28]}  Ng7 {[%clk 0:00:52]} 24. Nb6 {[%clk 0:00:23]}  Re8 {[%clk 0:00:53]} 25. Rxe8+ {[%clk 0:00:21]}  Nxe8 {[%clk 0:00:53]} 26. Re1 {[%clk 0:00:21]}  Be4 {[%clk 0:00:54]} 27. c3 {[%clk 0:00:12]}  Ng7 {[%clk 0:00:54]} 28. Rf1 {[%clk 0:00:11]}  Ne6 {[%clk 0:00:52]} 29. Rxf7 {[%clk 0:00:11]}  Kxf7 {[%clk 0:00:53]} 30. Be3 {[%clk 0:00:12]}  c5 {[%clk 0:00:52]} 31. Kf2 {[%clk 0:00:09]}  d4 {[%clk 0:00:52]} 32. cxd4 {[%clk 0:00:09]}  cxd4 {[%clk 0:00:53]} 33. Bd2 {[%clk 0:00:09]}  Bc6 {[%clk 0:00:51]} 34. Nc4 {[%clk 0:00:09]}  Nc5 {[%clk 0:00:46]} 35. Ne5+ {[%clk 0:00:08]}  Ke6 {[%clk 0:00:47]} 36. Nxc6 {[%clk 0:00:08]}  bxc6 {[%clk 0:00:48]} 37. Kf3 {[%clk 0:00:08]}  Kf5 {[%clk 0:00:46]} 38. h4 {[%clk 0:00:08]}  Ne4 {[%clk 0:00:47]} 39. Be1 {[%clk 0:00:07]}  c5 {[%clk 0:00:47]} 40. b3 {[%clk 0:00:07]}  Nd6 {[%clk 0:00:43]} 41. a4 {[%clk 0:00:07]}  c4 {[%clk 0:00:42]} 42. bxc4 {[%clk 0:00:07]}  Nxc4 {[%clk 0:00:43]} 43. Bb4 {[%clk 0:00:06]}  Nb2 {[%clk 0:00:43]} 44. a5 {[%clk 0:00:06]}  Nc4 {[%clk 0:00:43]} 45. Be1 {[%clk 0:00:06]}  d3 {[%clk 0:00:43]} 46. Bc3 {[%clk 0:00:04]}  d2 {[%clk 0:00:41]} 47. Ke2 {[%clk 0:00:04]}  Kg4 {[%clk 0:00:42]} 48. Bf6 {[%clk 0:00:02]}  Kxh4 {[%clk 0:00:41]} 49. Bd8 {[%clk 0:00:02]}  Kg4 {[%clk 0:00:41]} 50. Be7 {[%clk 0:00:02]}  Kf4 {[%clk 0:00:41]} 51. Bd8 {[%clk 0:00:03]}  Ke4 {[%clk 0:00:42]} 52. Bf6 {[%clk 0:00:02]}  Kd5 {[%clk 0:00:41]} 53. Bc3 {[%clk 0:00:02]}  Kc5 {[%clk 0:00:40]} 54. Kd1 {[%clk 0:00:02]}  Kb5 {[%clk 0:00:40]} 55. Ke2 {[%clk 0:00:02]}  Ka4 {[%clk 0:00:40]} 56. Kd1 {[%clk 0:00:02]}  Kb3 {[%clk 0:00:40]} 57. Be5 {[%clk 0:00:02]}  Nxa5 {[%clk 0:00:39]} 0-1


[Site "https://www.chess.com"]

[Event "Titled Tuesday Blitz December 13 Early 2022"]
[White "Deuer, Marius"]
[Black "Tan, Zhongyi"]
[WhiteFideId "16236432"]
[BlackFideId "8603642"]
[WhiteElo "2226"]
[BlackElo "2510"]
[Result "0-1"]
[Round "02"]
[TimeControl "180+1"]
[Date "2022.12.14"]
[WhiteClock "0:00:04"]
[BlackClock "0:00:30"]

1. d4 {[%clk 0:02:57]}  d5 {[%clk 0:02:57]} 2. c4 {[%clk 0:02:57]}  e6 {[%clk 0:02:57]} 3. Nc3 {[%clk 0:02:55]}  Nf6 {[%clk 0:02:56]} 4. Bf4 {[%clk 0:02:56]}  Be7 {[%clk 0:02:55]} 5. e3 {[%clk 0:02:56]}  O-O {[%clk 0:02:55]} 6. Nf3 {[%clk 0:02:56]}  b6 {[%clk 0:02:54]} 7. Rc1 {[%clk 0:02:56]}  Bb7 {[%clk 0:02:46]} 8. Qc2 {[%clk 0:02:56]}  c5 {[%clk 0:02:42]} 9. cxd5 {[%clk 0:02:54]}  cxd4 {[%clk 0:02:38]} 10. Nxd4 {[%clk 0:02:34]}  Nxd5 {[%clk 0:02:37]} 11. Nxd5 {[%clk 0:02:35]}  Qxd5 {[%clk 0:02:34]} 12. Qb3 {[%clk 0:02:34]}  Qa5+ {[%clk 0:02:30]} 13. Kd1 {[%clk 0:02:29]}  Bd5 {[%clk 0:02:24]} 14. Bc4 {[%clk 0:02:27]}  Bxc4 {[%clk 0:02:21]} 15. Rxc4 {[%clk 0:02:14]}  Nd7 {[%clk 0:02:12]} 16. Nc6 {[%clk 0:01:25]}  Qh5+ {[%clk 0:02:11]} 17. f3 {[%clk 0:01:16]}  Bf6 {[%clk 0:02:09]} 18. Ke2 {[%clk 0:01:14]}  Nc5 {[%clk 0:02:07]} 19. Qc2 {[%clk 0:01:14]}  e5 {[%clk 0:01:46]} 20. Bg3 {[%clk 0:01:02]}  e4 {[%clk 0:01:46]} 21. b4 {[%clk 0:01:02]}  exf3+ {[%clk 0:01:45]} 22. gxf3 {[%clk 0:01:03]}  Ne6 {[%clk 0:01:43]} 23. Rd1 {[%clk 0:00:54]}  Rfe8 {[%clk 0:01:42]} 24. Rg4 {[%clk 0:00:46]}  Rac8 {[%clk 0:01:37]} 25. Kf2 {[%clk 0:00:36]}  Qb5 {[%clk 0:01:25]} 26. Rc1 {[%clk 0:00:31]}  h5 {[%clk 0:01:22]} 27. Rc4 {[%clk 0:00:25]}  Ra8 {[%clk 0:01:15]} 28. a4 {[%clk 0:00:19]}  Qg5 {[%clk 0:01:15]} 29. h4 {[%clk 0:00:20]}  Qh6 {[%clk 0:01:13]} 30. b5 {[%clk 0:00:18]}  Nc5 {[%clk 0:01:11]} 31. e4 {[%clk 0:00:14]}  Ne6 {[%clk 0:00:55]} 32. Rd1 {[%clk 0:00:13]}  Be7 {[%clk 0:00:50]} 33. e5 {[%clk 0:00:13]}  Bc5+ {[%clk 0:00:49]} 34. Kg2 {[%clk 0:00:13]}  Qe3 {[%clk 0:00:48]} 35. Re4 {[%clk 0:00:13]}  Qh6 {[%clk 0:00:41]} 36. Rc4 {[%clk 0:00:13]}  a6 {[%clk 0:00:40]} 37. Rd2 {[%clk 0:00:06]}  axb5 {[%clk 0:00:40]} 38. axb5 {[%clk 0:00:07]}  Ra1 {[%clk 0:00:39]} 39. Rd1 {[%clk 0:00:07]}  Rxd1 {[%clk 0:00:38]} 40. Qxd1 {[%clk 0:00:08]}  Qe3 {[%clk 0:00:39]} 41. Re4 {[%clk 0:00:08]}  Qc3 {[%clk 0:00:37]} 42. Qd7 {[%clk 0:00:08]}  Ra8 {[%clk 0:00:33]} 43. Re2 {[%clk 0:00:06]}  Qc1 {[%clk 0:00:31]} 44. Bf2 {[%clk 0:00:03]}  Nf4+ {[%clk 0:00:31]} 45. Kh2 {[%clk 0:00:04]}  Nxe2 {[%clk 0:00:30]} 0-1


[Site "https://www.chess.com"]

[Event "Titled Tuesday Blitz December 13 Early 2022"]
[White "Dilanyan, Grigor"]
[Black "Remizov, Yaroslav"]
[WhiteFideId "13303570"]
[BlackFideId "34134015"]
[WhiteElo "2229"]
[BlackElo "2415"]
[Result "0-1"]
[Round "02"]
[TimeControl "180+1"]
[Date "2022.12.13"]
[WhiteClock "0:00:15"]
[BlackClock "0:00:21"]

1. e4 {[%clk 0:03:00]}  c6 {[%clk 0:02:59]} 2. d4 {[%clk 0:02:59]}  d5 {[%clk 0:03:00]} 3. exd5 {[%clk 0:02:59]}  cxd5 {[%clk 0:02:59]} 4. Bd3 {[%clk 0:03:00]}  Nc6 {[%clk 0:02:58]} 5. c3 {[%clk 0:03:01]}  Nf6 {[%clk 0:02:57]} 6. h3 {[%clk 0:02:57]}  g6 {[%clk 0:02:55]} 7. Nf3 {[%clk 0:02:57]}  Bg7 {[%clk 0:02:55]} 8. O-O {[%clk 0:02:57]}  O-O {[%clk 0:02:55]} 9. Bf4 {[%clk 0:02:55]}  Bf5 {[%clk 0:02:53]} 10. Be2 {[%clk 0:02:55]}  Qb6 {[%clk 0:02:25]} 11. b4 {[%clk 0:02:23]}  Ne4 {[%clk 0:02:10]} 12. a4 {[%clk 0:02:20]}  Rac8 {[%clk 0:01:36]} 13. a5 {[%clk 0:01:55]}  Qd8 {[%clk 0:01:31]} 14. Qb3 {[%clk 0:01:53]}  h6 {[%clk 0:01:09]} 15. Bh2 {[%clk 0:01:34]}  g5 {[%clk 0:01:06]} 16. Nfd2 {[%clk 0:01:34]}  Nxc3 {[%clk 0:00:58]} 17. Nxc3 {[%clk 0:01:15]}  Nxd4 {[%clk 0:00:57]} 18. Qd1 {[%clk 0:01:15]}  Rxc3 {[%clk 0:00:55]} 19. Bh5 {[%clk 0:01:10]}  Bc2 {[%clk 0:00:48]} 20. Qe1 {[%clk 0:00:56]}  Bd3 {[%clk 0:00:47]} 21. Be5 {[%clk 0:00:48]}  Nc2 {[%clk 0:00:41]} 22. Bxc3 {[%clk 0:00:30]}  Nxe1 {[%clk 0:00:41]} 23. Bxg7 {[%clk 0:00:29]}  Bxf1 {[%clk 0:00:38]} 24. Bxf8 {[%clk 0:00:27]}  Kxf8 {[%clk 0:00:33]} 25. Rxe1 {[%clk 0:00:18]}  Bb5 {[%clk 0:00:31]} 26. Nf3 {[%clk 0:00:18]}  Be8 {[%clk 0:00:27]} 27. Nd4 {[%clk 0:00:17]}  Qd6 {[%clk 0:00:26]} 28. Nf5 {[%clk 0:00:15]}  Qxb4 {[%clk 0:00:21]} 29. Nxe7 {[%clk 0:00:15]}  Qxe1+ {[%clk 0:00:21]} 0-1


[Site "https://www.chess.com"]

[Event "Titled Tuesday Blitz December 13 Early 2022"]
[White "Domingo Nunez, Ruben"]
[Black "Sankalan Shah"]
[WhiteFideId "22245570"]
[BlackFideId "25600362"]
[WhiteElo "2406"]
[BlackElo "2118"]
[Result "1-0"]
[Round "02"]
[TimeControl "180+1"]
[Date "2022.12.14"]
[WhiteClock "0:01:07"]
[BlackClock "0:00:11"]

1. b3 {[%clk 0:03:00]}  Nf6 {[%clk 0:02:53]} 2. Bb2 {[%clk 0:02:58]}  e6 {[%clk 0:02:53]} 3. Nf3 {[%clk 0:02:58]}  d5 {[%clk 0:02:52]} 4. e3 {[%clk 0:02:59]}  Be7 {[%clk 0:02:52]} 5. Be2 {[%clk 0:02:59]}  O-O {[%clk 0:02:52]} 6. O-O {[%clk 0:03:00]}  c5 {[%clk 0:02:53]} 7. c4 {[%clk 0:03:01]}  Nc6 {[%clk 0:02:51]} 8. Re1 {[%clk 0:02:58]}  d4 {[%clk 0:02:45]} 9. exd4 {[%clk 0:02:58]}  cxd4 {[%clk 0:02:46]} 10. Bf1 {[%clk 0:02:58]}  Qc7 {[%clk 0:02:44]} 11. Na3 {[%clk 0:02:58]}  Bxa3 {[%clk 0:02:38]} 12. Bxa3 {[%clk 0:02:58]}  Rd8 {[%clk 0:02:39]} 13. Rc1 {[%clk 0:02:51]}  e5 {[%clk 0:02:38]} 14. Bb2 {[%clk 0:02:46]}  e4 {[%clk 0:02:31]} 15. Ng5 {[%clk 0:02:45]}  Qf4 {[%clk 0:02:31]} 16. Nh3 {[%clk 0:02:35]}  Bxh3 {[%clk 0:02:30]} 17. gxh3 {[%clk 0:02:36]}  Ne5 {[%clk 0:02:23]} 18. Bg2 {[%clk 0:02:37]}  Nd3 {[%clk 0:02:18]} 19. Ba3 {[%clk 0:02:31]}  Qxf2+ {[%clk 0:02:17]} 20. Kh1 {[%clk 0:02:32]}  Nxe1 {[%clk 0:02:17]} 21. Qxe1 {[%clk 0:02:32]}  Qxe1+ {[%clk 0:02:06]} 22. Rxe1 {[%clk 0:02:33]}  Re8 {[%clk 0:02:06]} 23. Bc5 {[%clk 0:02:33]}  Rad8 {[%clk 0:01:55]} 24. Bxa7 {[%clk 0:02:33]}  Nh5 {[%clk 0:01:42]} 25. Bb6 {[%clk 0:02:25]}  Rd6 {[%clk 0:01:38]} 26. Bc5 {[%clk 0:02:24]}  Ra6 {[%clk 0:01:21]} 27. a4 {[%clk 0:02:03]}  f5 {[%clk 0:01:04]} 28. Bxd4 {[%clk 0:01:59]}  Nf4 {[%clk 0:01:04]} 29. Bf1 {[%clk 0:01:50]}  Rd6 {[%clk 0:00:59]} 30. Be3 {[%clk 0:01:47]}  Nd3 {[%clk 0:00:59]} 31. c5 {[%clk 0:01:10]}  Rd5 {[%clk 0:00:19]} 32. Rb1 {[%clk 0:01:07]}  Nxc5 {[%clk 0:00:18]} 33. Bc4 {[%clk 0:01:07]}  Rd8 {[%clk 0:00:11]} 34. Bxc5 {[%clk 0:01:07]} 1-0


[Site "https://www.chess.com"]

[Event "Titled Tuesday Blitz December 13 Early 2022"]
[White "Dong, Bao Nghia"]
[Black "Tarasova, Viktoriya"]
[WhiteFideId "12400343"]
[BlackFideId "4175840"]
[WhiteElo "2305"]
[BlackElo "2182"]
[Result "1-0"]
[Round "02"]
[TimeControl "180+1"]
[Date "2022.12.14"]
[WhiteClock "0:01:48"]
[BlackClock "0:00:18"]

1. d4 {[%clk 0:03:00]}  Nf6 {[%clk 0:02:59]} 2. c4 {[%clk 0:03:01]}  e6 {[%clk 0:02:58]} 3. Nc3 {[%clk 0:03:01]}  Bb4 {[%clk 0:02:58]} 4. Qb3 {[%clk 0:03:01]}  Bxc3+ {[%clk 0:02:56]} 5. Qxc3 {[%clk 0:03:01]}  b6 {[%clk 0:02:57]} 6. f3 {[%clk 0:03:01]}  d5 {[%clk 0:02:54]} 7. Bg5 {[%clk 0:03:01]}  O-O {[%clk 0:02:54]} 8. e3 {[%clk 0:03:02]}  Bb7 {[%clk 0:02:53]} 9. Rc1 {[%clk 0:03:01]}  c6 {[%clk 0:02:49]} 10. Bd3 {[%clk 0:03:01]}  Nbd7 {[%clk 0:02:49]} 11. Ne2 {[%clk 0:03:02]}  h6 {[%clk 0:02:49]} 12. Bh4 {[%clk 0:03:02]}  Rc8 {[%clk 0:02:49]} 13. O-O {[%clk 0:03:02]}  c5 {[%clk 0:02:50]} 14. Qa3 {[%clk 0:03:00]}  a5 {[%clk 0:02:47]} 15. cxd5 {[%clk 0:02:58]}  exd5 {[%clk 0:02:46]} 16. Bf5 {[%clk 0:02:57]}  g5 {[%clk 0:02:43]} 17. Bg3 {[%clk 0:02:56]}  Qe7 {[%clk 0:02:38]} 18. Rfe1 {[%clk 0:02:49]}  Ba6 {[%clk 0:02:36]} 19. Nc3 {[%clk 0:02:47]}  Rc6 {[%clk 0:02:27]} 20. e4 {[%clk 0:02:43]}  dxe4 {[%clk 0:02:22]} 21. Nxe4 {[%clk 0:02:43]}  Qd8 {[%clk 0:02:04]} 22. Rcd1 {[%clk 0:02:37]}  Nxe4 {[%clk 0:01:42]} 23. Bxe4 {[%clk 0:02:36]}  Re6 {[%clk 0:01:25]} 24. dxc5 {[%clk 0:02:36]}  bxc5 {[%clk 0:01:25]} 25. Bd6 {[%clk 0:02:36]}  Rfe8 {[%clk 0:01:23]} 26. Bxc5 {[%clk 0:02:36]}  Qc7 {[%clk 0:01:14]} 27. Bf2 {[%clk 0:02:36]}  Nf6 {[%clk 0:01:04]} 28. Bf5 {[%clk 0:02:30]}  Rxe1+ {[%clk 0:01:03]} 29. Bxe1 {[%clk 0:02:28]}  Re2 {[%clk 0:00:58]} 30. Qxa5 {[%clk 0:02:12]}  Qa7+ {[%clk 0:00:47]} 31. Kh1 {[%clk 0:02:12]}  Qe3 {[%clk 0:00:38]} 32. Bc3 {[%clk 0:02:05]}  Qf2 {[%clk 0:00:21]} 33. Qd8+ {[%clk 0:01:57]}  Ne8 {[%clk 0:00:21]} 34. Rg1 {[%clk 0:01:54]}  Bb7 {[%clk 0:00:17]} 35. Be4 {[%clk 0:01:52]}  Bxe4 {[%clk 0:00:17]} 36. Qxe8+ {[%clk 0:01:51]}  Kh7 {[%clk 0:00:17]} 37. fxe4 {[%clk 0:01:51]}  Kg6 {[%clk 0:00:17]} 38. Qg8+ {[%clk 0:01:50]}  Kh5 {[%clk 0:00:18]} 39. Qc8 {[%clk 0:01:46]}  Qf4 {[%clk 0:00:17]} 40. Qh3+ {[%clk 0:01:45]}  Kg6 {[%clk 0:00:18]} 41. Qf5+ {[%clk 0:01:46]}  Qxf5 {[%clk 0:00:18]} 42. exf5+ {[%clk 0:01:46]}  Kxf5 {[%clk 0:00:18]} 43. Rf1+ {[%clk 0:01:47]}  Kg6 {[%clk 0:00:18]} 44. Rf6+ {[%clk 0:01:48]}  Kh5 {[%clk 0:00:18]} 45. h3 {[%clk 0:01:48]} 1-0


[Site "https://www.chess.com"]

[Event "Titled Tuesday Blitz December 13 Early 2022"]
[White "Dubov, Daniil"]
[Black "Aloma Vidal, Robert"]
[WhiteFideId "24126055"]
[BlackFideId "2260409"]
[WhiteElo "2792"]
[BlackElo "2435"]
[Result "1-0"]
[Round "02"]
[TimeControl "180+1"]
[Date "2022.12.13"]
[WhiteClock "0:01:20"]
[BlackClock "0:00:01"]

1. e4 {[%clk 0:02:59]}  e5 {[%clk 0:02:59]} 2. Nf3 {[%clk 0:02:59]}  Nf6 {[%clk 0:02:59]} 3. Nc3 {[%clk 0:02:58]}  Nc6 {[%clk 0:02:58]} 4. d4 {[%clk 0:02:58]}  exd4 {[%clk 0:02:57]} 5. Nxd4 {[%clk 0:02:59]}  Bb4 {[%clk 0:02:54]} 6. Nxc6 {[%clk 0:02:58]}  bxc6 {[%clk 0:02:54]} 7. Bd3 {[%clk 0:02:59]}  d5 {[%clk 0:02:54]} 8. exd5 {[%clk 0:02:58]}  O-O {[%clk 0:02:54]} 9. O-O {[%clk 0:02:59]}  cxd5 {[%clk 0:02:54]} 10. Qf3 {[%clk 0:02:57]}  Rb8 {[%clk 0:02:51]} 11. Bg5 {[%clk 0:02:55]}  Be7 {[%clk 0:02:35]} 12. Bxf6 {[%clk 0:02:51]}  Bxf6 {[%clk 0:02:34]} 13. Nxd5 {[%clk 0:02:51]}  Bxb2 {[%clk 0:02:21]} 14. Rad1 {[%clk 0:02:50]}  Qg5 {[%clk 0:02:06]} 15. Qe4 {[%clk 0:02:42]}  g6 {[%clk 0:01:52]} 16. f4 {[%clk 0:02:39]}  Qh4 {[%clk 0:01:40]} 17. g3 {[%clk 0:02:38]}  Qh3 {[%clk 0:01:27]} 18. c3 {[%clk 0:02:30]}  Qe6 {[%clk 0:01:05]} 19. Qd4 {[%clk 0:02:25]}  f6 {[%clk 0:01:01]} 20. f5 {[%clk 0:02:20]}  Qe5 {[%clk 0:00:48]} 21. Qxe5 {[%clk 0:02:15]}  fxe5 {[%clk 0:00:48]} 22. fxg6 {[%clk 0:02:14]}  Rxf1+ {[%clk 0:00:48]} 23. Bxf1 {[%clk 0:02:06]}  Be6 {[%clk 0:00:40]} 24. gxh7+ {[%clk 0:01:58]}  Kxh7 {[%clk 0:00:37]} 25. Nxc7 {[%clk 0:01:52]}  Bxa2 {[%clk 0:00:34]} 26. Rd7+ {[%clk 0:01:53]}  Kh6 {[%clk 0:00:32]} 27. Bd3 {[%clk 0:01:52]}  Bxc3 {[%clk 0:00:25]} 28. Nb5 {[%clk 0:01:52]}  Bb4 {[%clk 0:00:15]} 29. h4 {[%clk 0:01:52]}  Bg8 {[%clk 0:00:06]} 30. Kg2 {[%clk 0:01:47]}  e4 {[%clk 0:00:06]} 31. Be2 {[%clk 0:01:45]}  a6 {[%clk 0:00:05]} 32. Nd4 {[%clk 0:01:45]}  a5 {[%clk 0:00:04]} 33. g4 {[%clk 0:01:38]}  a4 {[%clk 0:00:02]} 34. g5+ {[%clk 0:01:30]}  Kg6 {[%clk 0:00:02]} 35. Nc6 {[%clk 0:01:30]}  Bc3 {[%clk 0:00:01]} 36. Ne7+ {[%clk 0:01:20]} 1-0


[Site "https://www.chess.com"]

[Event "Titled Tuesday Blitz December 13 Early 2022"]
[White "Fiedorek, Michal"]
[Black "Movahed, Sina"]
[WhiteFideId "1199528"]
[BlackFideId "42520835"]
[WhiteElo "2201"]
[BlackElo "2225"]
[Result "1-0"]
[Round "02"]
[TimeControl "180+1"]
[Date "2022.12.14"]
[WhiteClock "0:01:04"]
[BlackClock "0:00:09"]

1. e4 {[%clk 0:02:56]}  c5 {[%clk 0:03:00]} 2. Nf3 {[%clk 0:02:56]}  d6 {[%clk 0:03:00]} 3. d4 {[%clk 0:02:57]}  cxd4 {[%clk 0:03:01]} 4. Nxd4 {[%clk 0:02:58]}  Nf6 {[%clk 0:03:01]} 5. Nc3 {[%clk 0:02:58]}  a6 {[%clk 0:03:01]} 6. Be3 {[%clk 0:02:59]}  e6 {[%clk 0:02:59]} 7. h3 {[%clk 0:02:57]}  b5 {[%clk 0:02:56]} 8. a3 {[%clk 0:02:50]}  Bb7 {[%clk 0:02:55]} 9. Bd3 {[%clk 0:02:47]}  Nbd7 {[%clk 0:02:54]} 10. g4 {[%clk 0:02:47]}  Nc5 {[%clk 0:02:54]} 11. f3 {[%clk 0:02:46]}  Rc8 {[%clk 0:02:45]} 12. Qd2 {[%clk 0:02:46]}  Be7 {[%clk 0:02:42]} 13. O-O-O {[%clk 0:02:43]}  Nfd7 {[%clk 0:02:41]} 14. f4 {[%clk 0:02:37]}  Qc7 {[%clk 0:02:32]} 15. g5 {[%clk 0:02:30]}  Nb6 {[%clk 0:02:25]} 16. f5 {[%clk 0:02:17]}  e5 {[%clk 0:02:06]} 17. Nde2 {[%clk 0:02:11]}  d5 {[%clk 0:01:32]} 18. f6 {[%clk 0:01:49]}  dxe4 {[%clk 0:01:19]} 19. Bxb5+ {[%clk 0:01:38]}  axb5 {[%clk 0:01:17]} 20. fxe7 {[%clk 0:01:37]}  Kxe7 {[%clk 0:01:15]} 21. Ng3 {[%clk 0:01:27]}  Rhd8 {[%clk 0:00:32]} 22. Nf5+ {[%clk 0:01:26]}  Ke8 {[%clk 0:00:32]} 23. Qf2 {[%clk 0:01:06]}  Nca4 {[%clk 0:00:10]} 24. Nxg7+ {[%clk 0:01:04]}  Kf8 {[%clk 0:00:09]} 25. Ne6+ {[%clk 0:01:04]} 1-0


[Site "https://www.chess.com"]

[Event "Titled Tuesday Blitz December 13 Early 2022"]
[White "Forgacs, Attila Jr."]
[Black "Kuderinov, Kirill"]
[WhiteFideId "773654"]
[BlackFideId "13701568"]
[WhiteElo "2168"]
[BlackElo "2459"]
[Result "0-1"]
[Round "02"]
[TimeControl "180+1"]
[Date "2022.12.14"]
[WhiteClock "0:00:01"]
[BlackClock "0:00:44"]

1. e4 {[%clk 0:03:00]}  e5 {[%clk 0:02:58]} 2. Nf3 {[%clk 0:03:00]}  Nc6 {[%clk 0:02:58]} 3. Bb5 {[%clk 0:03:00]}  a6 {[%clk 0:02:57]} 4. Ba4 {[%clk 0:03:01]}  Nf6 {[%clk 0:02:57]} 5. O-O {[%clk 0:03:02]}  b5 {[%clk 0:02:57]} 6. Bb3 {[%clk 0:03:02]}  Be7 {[%clk 0:02:58]} 7. d4 {[%clk 0:03:01]}  d6 {[%clk 0:02:47]} 8. h3 {[%clk 0:02:28]}  Nxd4 {[%clk 0:02:40]} 9. Nxd4 {[%clk 0:02:25]}  exd4 {[%clk 0:02:40]} 10. c3 {[%clk 0:02:10]}  dxc3 {[%clk 0:02:25]} 11. Nxc3 {[%clk 0:02:09]}  O-O {[%clk 0:02:26]} 12. Bg5 {[%clk 0:01:55]}  Bb7 {[%clk 0:02:26]} 13. Re1 {[%clk 0:01:46]}  h6 {[%clk 0:02:25]} 14. Bh4 {[%clk 0:01:45]}  b4 {[%clk 0:02:21]} 15. Na4 {[%clk 0:01:25]}  Re8 {[%clk 0:02:16]} 16. Rc1 {[%clk 0:01:24]}  Nxe4 {[%clk 0:02:08]} 17. Bxe7 {[%clk 0:01:07]}  Rxe7 {[%clk 0:02:09]} 18. Bc2 {[%clk 0:00:49]}  Nf6 {[%clk 0:02:00]} 19. Qd2 {[%clk 0:00:43]}  a5 {[%clk 0:01:51]} 20. a3 {[%clk 0:00:33]}  Rxe1+ {[%clk 0:01:37]} 21. Rxe1 {[%clk 0:00:33]}  bxa3 {[%clk 0:01:25]} 22. bxa3 {[%clk 0:00:34]}  Qd7 {[%clk 0:01:24]} 23. Nc3 {[%clk 0:00:33]}  Qc6 {[%clk 0:01:23]} 24. Ne4 {[%clk 0:00:25]}  Nxe4 {[%clk 0:01:13]} 25. Bxe4 {[%clk 0:00:25]}  d5 {[%clk 0:01:06]} 26. Bb1 {[%clk 0:00:20]}  Re8 {[%clk 0:01:01]} 27. Rxe8+ {[%clk 0:00:19]}  Qxe8 {[%clk 0:01:02]} 28. Qd3 {[%clk 0:00:20]}  g6 {[%clk 0:01:00]} 29. h4 {[%clk 0:00:18]}  Qe1+ {[%clk 0:00:59]} 30. Kh2 {[%clk 0:00:18]}  Qxf2 {[%clk 0:01:00]} 31. h5 {[%clk 0:00:17]}  Qh4+ {[%clk 0:00:59]} 32. Kg1 {[%clk 0:00:17]}  Qxh5 {[%clk 0:01:00]} 33. Qb5 {[%clk 0:00:10]}  Bc6 {[%clk 0:00:56]} 34. Qxc6 {[%clk 0:00:05]}  Qd1+ {[%clk 0:00:56]} 35. Kh2 {[%clk 0:00:06]}  Qxb1 {[%clk 0:00:56]} 36. Qe8+ {[%clk 0:00:07]}  Kg7 {[%clk 0:00:55]} 37. Qe5+ {[%clk 0:00:07]}  Kh7 {[%clk 0:00:56]} 38. Qf6 {[%clk 0:00:06]}  Qf5 {[%clk 0:00:56]} 39. Qd8 {[%clk 0:00:06]}  Qf4+ {[%clk 0:00:52]} 40. Kg1 {[%clk 0:00:05]}  d4 {[%clk 0:00:52]} 41. Qd5 {[%clk 0:00:04]}  c6 {[%clk 0:00:49]} 42. Qxc6 {[%clk 0:00:02]}  d3 {[%clk 0:00:50]} 43. Qd5 {[%clk 0:00:02]}  d2 {[%clk 0:00:49]} 44. Qd7 {[%clk 0:00:01]}  Kg7 {[%clk 0:00:46]} 45. Qd5 {[%clk 0:00:01]}  Qe3+ {[%clk 0:00:46]} 46. Kh2 {[%clk 0:00:01]}  g5 {[%clk 0:00:44]} 0-1


[Site "https://www.chess.com"]

[Event "Titled Tuesday Blitz December 13 Early 2022"]
[White "Gonzalez, Francisco Silva"]
[Black "Sadubayev, Airat"]
[WhiteFideId "1512285"]
[BlackFideId "13713264"]
[WhiteElo "2220"]
[BlackElo "2160"]
[Result "0-1"]
[Round "02"]
[TimeControl "180+1"]
[Date "2022.12.14"]
[WhiteClock "0:01:29"]
[BlackClock "0:01:07"]

1. d4 {[%clk 0:03:00]}  d5 {[%clk 0:02:58]} 2. c4 {[%clk 0:02:58]}  c6 {[%clk 0:02:58]} 3. Nc3 {[%clk 0:02:50]}  Nf6 {[%clk 0:02:58]} 4. e3 {[%clk 0:02:50]}  e6 {[%clk 0:02:57]} 5. Nf3 {[%clk 0:02:48]}  Nbd7 {[%clk 0:02:57]} 6. Bd3 {[%clk 0:02:45]}  dxc4 {[%clk 0:02:57]} 7. Bxc4 {[%clk 0:02:45]}  b5 {[%clk 0:02:58]} 8. Be2 {[%clk 0:02:45]}  Bb7 {[%clk 0:02:56]} 9. O-O {[%clk 0:02:43]}  a6 {[%clk 0:02:55]} 10. e4 {[%clk 0:02:40]}  b4 {[%clk 0:02:47]} 11. e5 {[%clk 0:02:39]}  bxc3 {[%clk 0:02:47]} 12. exf6 {[%clk 0:02:39]}  cxb2 {[%clk 0:02:44]} 13. fxg7 {[%clk 0:02:38]}  Bxg7 {[%clk 0:02:39]} 14. Bxb2 {[%clk 0:02:35]}  O-O {[%clk 0:02:39]} 15. Rb1 {[%clk 0:02:32]}  c5 {[%clk 0:02:30]} 16. dxc5 {[%clk 0:02:31]}  Bxb2 {[%clk 0:02:30]} 17. Rxb2 {[%clk 0:02:28]}  Nxc5 {[%clk 0:02:30]} 18. Qc1 {[%clk 0:02:26]}  Rc8 {[%clk 0:02:28]} 19. Rc2 {[%clk 0:02:22]}  Ne4 {[%clk 0:02:22]} 20. Rd1 {[%clk 0:02:19]}  Qf6 {[%clk 0:02:12]} 21. Rc7 {[%clk 0:02:19]}  Nc3 {[%clk 0:02:00]} 22. Rxc3 {[%clk 0:02:13]}  Qxc3 {[%clk 0:02:00]} 23. Qg5+ {[%clk 0:02:12]}  Qg7 {[%clk 0:02:00]} 24. Qa5 {[%clk 0:02:13]}  Qf6 {[%clk 0:01:45]} 25. Qb6 {[%clk 0:02:11]}  Bxf3 {[%clk 0:01:43]} 26. Bxf3 {[%clk 0:02:10]}  Rfd8 {[%clk 0:01:43]} 27. Rf1 {[%clk 0:02:05]}  Rc2 {[%clk 0:01:29]} 28. Qxa6 {[%clk 0:02:05]}  Rdc8 {[%clk 0:01:28]} 29. Bb7 {[%clk 0:02:00]}  R8c7 {[%clk 0:01:24]} 30. g3 {[%clk 0:01:49]}  Rc1 {[%clk 0:01:21]} 31. Bf3 {[%clk 0:01:43]}  Rxf1+ {[%clk 0:01:13]} 32. Kg2 {[%clk 0:01:43]}  Rfc1 {[%clk 0:01:12]} 33. Qa8+ {[%clk 0:01:41]}  Kg7 {[%clk 0:01:12]} 34. a4 {[%clk 0:01:41]}  R7c3 {[%clk 0:01:08]} 35. a5 {[%clk 0:01:37]}  Qxf3+ {[%clk 0:01:08]} 36. Kh3 {[%clk 0:01:35]}  Qxa8 {[%clk 0:01:08]} 37. f3 {[%clk 0:01:34]}  Qxf3 {[%clk 0:01:07]} 38. a6 {[%clk 0:01:29]}  Rc5 {[%clk 0:01:07]} 0-1


[Site "https://www.chess.com"]